fUST/lending_fUST_20260523
["ID","MTS","AMOUNT","RATE_DAILY","PERIOD"]
[422857488,1779533440000,-589.94455127,8.219e-05,7]
[422857490,1779533440000,-486.0948005,8.219e-05,7]
[422857491,1779533440000,-648.12640066,8.219e-05,7]
[422857492,1779533440000,-655.78923499,8.219e-05,7]
[422857499,1779533440000,-205.95903239,8.219e-05,7]
[422857489,1779533440000,-786.59273503,8.219e-05,7]
[422857495,1779533440000,-1945.08841368,8.219e-05,7]
[422857498,1779533440000,-514.10080374,8.219e-05,7]
[422857500,1779533440000,-411.91806479,8.219e-05,7]
[422857496,1779533440000,-2593.45121824,8.219e-05,7]
[422857494,1779533440000,-1296.72560912,8.219e-05,7]
[422857493,1779533440000,-874.38564666,8.219e-05,7]
[422857479,1779533440000,-722.55683152,8.219e-05,7]
[422857460,1779533440000,-731.12500092,8.219e-05,7]
[422857444,1779533440000,-401.58696203,8.219e-05,7]
[422857465,1779533440000,-169.86603058,8.219e-05,7]
[422857441,1779533440000,-464.03167165,8.219e-05,7]
[422857438,1779533440000,-577.86839627,8.219e-05,7]
[422857439,1779533440000,-154.67722388,8.219e-05,7]
[422857431,1779533440000,-191.9890833,8.219e-05,7]
[422857437,1779533440000,-385.24559752,8.219e-05,7]
[422857433,1779533440000,-575.96724989,8.219e-05,7]
[422857445,1779533440000,-173.06261184,8.219e-05,7]
[422857435,1779533440000,-192.62279876,8.219e-05,7]
[422857474,1779533440000,-188.3034635,8.219e-05,7]
[422857440,1779533440000,-309.35444777,8.219e-05,7]
[422857446,1779533440000,-346.12522369,8.219e-05,7]
[422857448,1779533440000,-162.61213709,8.219e-05,7]
[422857449,1779533440000,-325.22427417,8.219e-05,7]
[422857450,1779533440000,-293.49100047,8.219e-05,7]
[422857457,1779533440000,-182.78125023,8.219e-05,7]
[422857434,1779533440000,-767.95633319,8.219e-05,7]
[422857451,1779533440000,-586.98200093,8.219e-05,7]
[422857455,1779533440000,-991.5519549,8.219e-05,7]
[422857471,1779533440000,-624.26381793,8.219e-05,7]
[422857469,1779533440000,-218.59641166,8.219e-05,7]
[422857473,1779533440000,-171.32237721,8.219e-05,7]
[422857472,1779533440000,-832.35175723,8.219e-05,7]
[422857461,1779533440000,-412.32409914,8.219e-05,7]
[422857459,1779533440000,-548.34375069,8.219e-05,7]
[422857464,1779533440000,-648.36280456,8.219e-05,7]
[422857447,1779533440000,-519.18783553,8.219e-05,7]
[422857452,1779533440000,-183.10557551,8.219e-05,7]
[422857458,1779533440000,-365.56250046,8.219e-05,7]
[422857453,1779533440000,-455.43360712,8.219e-05,7]
[422857456,1779533440000,-1322.0692732,8.219e-05,7]
[422857497,1779533440000,-257.05040187,8.219e-05,7]
[422857454,1779533440000,-416.17587862,8.219e-05,7]
[422857556,1779533441000,-500.0,8.493e-05,2]
[422857545,1779533441000,-500.0,8.493e-05,2]
[422857546,1779533441000,-500.0,8.493e-05,2]
[422857547,1779533441000,-1627.82,8.493e-05,2]
[422857544,1779533441000,-500.0,8.493e-05,2]
[422857538,1779533441000,-606.61,8.493e-05,2]
[422857532,1779533441000,-226.090691,8.493e-05,2]
[422857540,1779533441000,-500.0,8.493e-05,2]
[422857536,1779533441000,-558.79,8.493e-05,2]
[422857539,1779533441000,-1630.14,8.493e-05,2]
[422857533,1779533441000,-226.090694,8.493e-05,2]
[422857537,1779533441000,-456.80964206,8.493e-05,2]
[422857535,1779533441000,-500.0,8.493e-05,2]
[422857553,1779533441000,-500.0,8.493e-05,2]
[422857566,1779533441000,-500.0,8.493e-05,2]
[422857555,1779533441000,-500.0,8.493e-05,2]
[422857534,1779533441000,-500.0,8.493e-05,2]
[422857560,1779533441000,-653.29,8.493e-05,2]
[422857564,1779533441000,-500.0,8.493e-05,2]
[422857567,1779533441000,-500.0,8.493e-05,2]
[422857569,1779533441000,-888.23,8.493e-05,2]
[422857558,1779533441000,-500.0,8.493e-05,2]
[422857550,1779533441000,-931.49,8.493e-05,2]
[422857570,1779533441000,-500.0,8.493e-05,2]
[422857552,1779533441000,-1133.94,8.493e-05,2]
[422857549,1779533441000,-500.0,8.493e-05,2]
[422857551,1779533441000,-500.0,8.493e-05,2]
[422857554,1779533441000,-500.0,8.493e-05,2]
[422857548,1779533441000,-1332.53,8.493e-05,2]
[422857557,1779533441000,-7578.79,8.493e-05,2]
[422857559,1779533441000,-500.0,8.493e-05,2]
[422857543,1779533441000,-500.0,8.493e-05,2]
[422857518,1779533441000,-1256.7922,8.493e-05,2]
[422857530,1779533441000,-500.0,8.493e-05,2]
[422857565,1779533441000,-500.0,8.493e-05,2]
[422857501,1779533441000,-617.87709718,8.219e-05,7]
[422857502,1779533441000,-823.83612958,8.219e-05,7]
[422857504,1779533441000,-500.0,8.219e-05,2]
[422857513,1779533441000,-761.36648513,8.219e-05,7]
[422857515,1779533441000,-621.52320623,8.399e-05,2]
[422857510,1779533441000,-685.28950885,8.219e-05,7]
[422857505,1779533441000,-421.34265295,8.219e-05,2]
[422857503,1779533441000,-487.83641126,8.219e-05,7]
[422857508,1779533441000,-342.64475442,8.219e-05,7]
[422857509,1779533441000,-513.96713163,8.219e-05,7]
[422857506,1779533441000,-596.85869537,8.219e-05,7]
[422857507,1779533441000,-795.81159383,8.219e-05,7]
[422857514,1779533441000,-600.0,8.382e-05,2]
[422857542,1779533441000,-500.0,8.493e-05,2]
[422857511,1779533441000,-380.68324256,8.219e-05,7]
[422857516,1779533441000,-2043.963307,8.402e-05,2]
[422857519,1779533441000,-348.13015147,8.493e-05,2]
[422857527,1779533441000,-538.16608787,8.493e-05,2]
[422857521,1779533441000,-500.0,8.493e-05,2]
[422857529,1779533441000,-226.090691,8.493e-05,2]
[422857528,1779533441000,-500.0,8.493e-05,2]
[422857520,1779533441000,-500.0,8.493e-05,2]
[422857522,1779533441000,-500.0,8.493e-05,2]
[422857523,1779533441000,-500.0,8.493e-05,2]
[422857524,1779533441000,-500.0,8.493e-05,2]
[422857525,1779533441000,-500.0,8.493e-05,2]
[422857526,1779533441000,-500.0,8.493e-05,2]
[422857531,1779533441000,-226.090691,8.493e-05,2]
[422857541,1779533441000,-500.0,8.493e-05,2]
[422857517,1779533441000,-152.0,8.481e-05,7]
[422857561,1779533441000,-637.24,8.493e-05,2]
[422857512,1779533441000,-571.02486385,8.219e-05,7]
[422857562,1779533441000,-1599.04,8.493e-05,2]
[422857604,1779533441000,-160.0,8.765e-05,2]
[422857609,1779533441000,-500.0,8.767e-05,2]
[422857610,1779533441000,-500.0,8.767e-05,2]
[422857603,1779533441000,-766.63845589,8.765e-05,2]
[422857605,1779533441000,-953.8306,8.767e-05,2]
[422857607,1779533441000,-500.0,8.767e-05,2]
[422857611,1779533441000,-500.0,8.767e-05,2]
[422857622,1779533441000,-500.0,8.767e-05,2]
[422857624,1779533441000,-500.0,8.767e-05,2]
[422857617,1779533441000,-558.79,8.767e-05,2]
[422857614,1779533441000,-500.0,8.767e-05,2]
[422857623,1779533441000,-500.0,8.767e-05,2]
[422857612,1779533441000,-500.0,8.767e-05,2]
[422857613,1779533441000,-500.0,8.767e-05,2]
[422857606,1779533441000,-500.0,8.767e-05,2]
[422857615,1779533441000,-500.0,8.767e-05,2]
[422857621,1779533441000,-500.0,8.767e-05,2]
[422857618,1779533441000,-606.61,8.767e-05,2]
[422857616,1779533441000,-500.0,8.767e-05,2]
[422857620,1779533441000,-500.0,8.767e-05,2]
[422857626,1779533441000,-500.0,8.767e-05,2]
[422857625,1779533441000,-500.0,8.767e-05,2]
[422857633,1779533441000,-500.0,8.767e-05,2]
[422857627,1779533441000,-1627.82,8.767e-05,2]
[422857628,1779533441000,-1332.53,8.767e-05,2]
[422857629,1779533441000,-500.0,8.767e-05,2]
[422857632,1779533441000,-1133.94,8.767e-05,2]
[422857634,1779533441000,-500.0,8.767e-05,2]
[422857631,1779533441000,-500.0,8.767e-05,2]
[422857635,1779533441000,-500.0,8.767e-05,2]
[422857619,1779533441000,-1630.14,8.767e-05,2]
[422857602,1779533441000,-161.73153808,8.765e-05,2]
[422857630,1779533441000,-931.49,8.767e-05,2]
[422857598,1779533441000,-452.00477503,8.653e-05,2]
[422857580,1779533441000,-880.7288668,8.496e-05,7]
[422857578,1779533441000,-854.11171657,8.496e-05,7]
[422857576,1779533441000,-810.15800083,8.496e-05,7]
[422857577,1779533441000,-3888.45491208,8.496e-05,7]
[422857575,1779533441000,-967.24439851,8.496e-05,7]
[422857573,1779533441000,-860.85852001,8.496e-05,7]
[422857579,1779533441000,-856.66784758,8.496e-05,7]
[422857584,1779533441000,-959.94541648,8.496e-05,7]
[422857583,1779533441000,-1638.0027725,8.496e-05,7]
[422857574,1779533441000,-983.24091879,8.496e-05,7]
[422857582,1779533441000,-1040.43969654,8.496e-05,7]
[422857572,1779533441000,-1030.81024785,8.496e-05,7]
[422857568,1779533441000,-1245.66,8.493e-05,2]
[422857608,1779533441000,-357.88388413,8.767e-05,2]
[422857571,1779533441000,-869.47099477,8.496e-05,7]
[422857581,1779533441000,-782.30921825,8.496e-05,7]
[422857563,1779533441000,-500.0,8.493e-05,2]
[422857596,1779533441000,-572.0,8.64e-05,2]
[422857586,1779533441000,-915.52787754,8.496e-05,7]
[422857599,1779533441000,-1594.96432519,8.683e-05,2]
[422857597,1779533441000,-185.0,8.64e-05,2]
[422857594,1779533441000,-648.0,8.64e-05,2]
[422857591,1779533441000,-903.1960394,8.496e-05,7]
[422857592,1779533441000,-2257.127,8.64e-05,2]
[422857601,1779533441000,-160.0,8.765e-05,2]
[422857595,1779533441000,-443.0,8.64e-05,2]
[422857587,1779533441000,-3241.81402281,8.496e-05,7]
[422857589,1779533441000,-1092.98205832,8.496e-05,7]
[422857588,1779533441000,-849.33015288,8.496e-05,7]
[422857600,1779533441000,-629.33037905,8.762e-05,2]
[422857590,1779533441000,-856.61188606,8.496e-05,7]
[422857593,1779533441000,-1413.0,8.64e-05,2]
[422857585,1779533441000,-773.38611942,8.496e-05,7]
[422857679,1779533442000,-500.0,9.041e-05,2]
[422857662,1779533442000,-1248.52763585,8.911e-05,7]
[422857667,1779533442000,-3890.17682737,8.911e-05,7]
[422857665,1779533442000,-928.0633433,8.911e-05,7]
[422857672,1779533442000,-640.7172883,9e-05,10]
[422857682,1779533442000,-500.0,9.041e-05,2]
[422857671,1779533442000,-1083.83524728,8.911e-05,7]
[422857673,1779533442000,-953.8306,9.041e-05,2]
[422857674,1779533442000,-297.85274821,9.041e-05,2]
[422857677,1779533442000,-500.0,9.041e-05,2]
[422857680,1779533442000,-500.0,9.041e-05,2]
[422857670,1779533442000,-1027.93426327,8.911e-05,7]
[422857685,1779533442000,-606.61,9.041e-05,2]
[422857681,1779533442000,-500.0,9.041e-05,2]
[422857675,1779533442000,-500.0,9.041e-05,2]
[422857676,1779533442000,-500.0,9.041e-05,2]
[422857684,1779533442000,-558.79,9.041e-05,2]
[422857688,1779533442000,-500.0,9.041e-05,2]
[422857666,1779533442000,-1098.63345304,8.911e-05,7]
[422857687,1779533442000,-500.0,9.041e-05,2]
[422857689,1779533442000,-500.0,9.041e-05,2]
[422857686,1779533442000,-1630.14,9.041e-05,2]
[422857683,1779533442000,-500.0,9.041e-05,2]
[422857690,1779533442000,-500.0,9.041e-05,2]
[422857692,1779533442000,-500.0,9.041e-05,2]
[422857693,1779533442000,-500.0,9.041e-05,2]
[422857678,1779533442000,-500.0,9.041e-05,2]
[422857669,1779533442000,-1311.57846999,8.911e-05,7]
[422857655,1779533442000,-1179.88910255,8.911e-05,7]
[422857664,1779533442000,-1151.93449978,8.911e-05,7]
[422857691,1779533442000,-500.0,9.041e-05,2]
[422857636,1779533442000,-500.0,8.767e-05,2]
[422857637,1779533442000,-7578.79,8.767e-05,2]
[422857639,1779533442000,-500.0,8.767e-05,2]
[422857640,1779533442000,-653.29,8.767e-05,2]
[422857638,1779533442000,-500.0,8.767e-05,2]
[422857641,1779533442000,-637.24,8.767e-05,2]
[422857643,1779533442000,-500.0,8.767e-05,2]
[422857645,1779533442000,-500.0,8.767e-05,2]
[422857642,1779533442000,-1599.04,8.767e-05,2]
[422857644,1779533442000,-500.0,8.767e-05,2]
[422857647,1779533442000,-500.0,8.767e-05,2]
[422857668,1779533442000,-1019.19618345,8.911e-05,7]
[422857649,1779533442000,-888.23,8.767e-05,2]
[422857652,1779533442000,-1043.36519372,8.911e-05,7]
[422857657,1779533442000,-4666.1458945,8.911e-05,7]
[422857648,1779533442000,-1245.66,8.767e-05,2]
[422857653,1779533442000,-1033.03022401,8.911e-05,7]
[422857646,1779533442000,-500.0,8.767e-05,2]
[422857651,1779533442000,-5393.93000147,8.832e-05,2]
[422857650,1779533442000,-500.0,8.767e-05,2]
[422857658,1779533442000,-1024.93405989,8.911e-05,7]
[422857659,1779533442000,-1028.00141709,8.911e-05,7]
[422857661,1779533442000,-938.7710619,8.911e-05,7]
[422857660,1779533442000,-1056.87464016,8.911e-05,7]
[422857663,1779533442000,-1965.603327,8.911e-05,7]
[422857654,1779533442000,-1160.69327822,8.911e-05,7]
[422857656,1779533442000,-972.18960099,8.911e-05,7]
[422857706,1779533442000,-500.0,9.041e-05,2]
[422857695,1779533442000,-1332.53,9.041e-05,2]
[422857723,1779533442000,-393.90580838,9.315e-05,2]
[422857722,1779533442000,-953.8306,9.315e-05,2]
[422857728,1779533442000,-500.0,9.315e-05,2]
[422857729,1779533442000,-500.0,9.315e-05,2]
[422857732,1779533442000,-558.79,9.315e-05,2]
[422857733,1779533442000,-606.61,9.315e-05,2]
[422857735,1779533442000,-500.0,9.315e-05,2]
[422857734,1779533442000,-1630.14,9.315e-05,2]
[422857736,1779533442000,-500.0,9.315e-05,2]
[422857742,1779533442000,-1627.82,9.315e-05,2]
[422857738,1779533442000,-500.0,9.315e-05,2]
[422857743,1779533442000,-1332.53,9.315e-05,2]
[422857725,1779533442000,-500.0,9.315e-05,2]
[422857744,1779533442000,-500.0,9.315e-05,2]
[422857737,1779533442000,-500.0,9.315e-05,2]
[422857741,1779533442000,-500.0,9.315e-05,2]
[422857740,1779533442000,-500.0,9.315e-05,2]
[422857747,1779533442000,-1133.94,9.315e-05,2]
[422857746,1779533442000,-500.0,9.315e-05,2]
[422857748,1779533442000,-500.0,9.315e-05,2]
[422857749,1779533442000,-500.0,9.315e-05,2]
[422857750,1779533442000,-500.0,9.315e-05,2]
[422857752,1779533442000,-7578.79,9.315e-05,2]
[422857751,1779533442000,-500.0,9.315e-05,2]
[422857753,1779533442000,-500.0,9.315e-05,2]
[422857705,1779533442000,-500.0,9.041e-05,2]
[422857739,1779533442000,-500.0,9.315e-05,2]
[422857721,1779533442000,-1685.15987914,9.297e-05,2]
[422857745,1779533442000,-931.49,9.315e-05,2]
[422857726,1779533442000,-500.0,9.315e-05,2]
[422857694,1779533442000,-1627.82,9.041e-05,2]
[422857727,1779533442000,-500.0,9.315e-05,2]
[422857696,1779533442000,-500.0,9.041e-05,2]
[422857699,1779533442000,-1133.94,9.041e-05,2]
[422857700,1779533442000,-500.0,9.041e-05,2]
[422857697,1779533442000,-931.49,9.041e-05,2]
[422857698,1779533442000,-500.0,9.041e-05,2]
[422857702,1779533442000,-500.0,9.041e-05,2]
[422857704,1779533442000,-7578.79,9.041e-05,2]
[422857701,1779533442000,-500.0,9.041e-05,2]
[422857710,1779533442000,-500.0,9.041e-05,2]
[422857707,1779533442000,-653.29,9.041e-05,2]
[422857713,1779533442000,-500.0,9.041e-05,2]
[422857703,1779533442000,-500.0,9.041e-05,2]
[422857720,1779533442000,-720.0,9.22e-05,2]
[422857712,1779533442000,-500.0,9.041e-05,2]
[422857716,1779533442000,-888.23,9.041e-05,2]
[422857711,1779533442000,-500.0,9.041e-05,2]
[422857717,1779533442000,-500.0,9.041e-05,2]
[422857709,1779533442000,-1599.04,9.041e-05,2]
[422857715,1779533442000,-1245.66,9.041e-05,2]
[422857714,1779533442000,-500.0,9.041e-05,2]
[422857718,1779533442000,-10000.0,9.123e-05,2]
[422857724,1779533442000,-500.0,9.315e-05,2]
[422857730,1779533442000,-500.0,9.315e-05,2]
[422857731,1779533442000,-500.0,9.315e-05,2]
[422857708,1779533442000,-637.24,9.041e-05,2]
[422857719,1779533442000,-440.78423087,9.137e-05,2]
[422857795,1779533443000,-500.0,9.589e-05,2]
[422857799,1779533443000,-500.0,9.589e-05,2]
[422857790,1779533443000,-500.0,9.589e-05,2]
[422857793,1779533443000,-500.0,9.589e-05,2]
[422857798,1779533443000,-1630.14,9.589e-05,2]
[422857809,1779533443000,-931.49,9.589e-05,2]
[422857796,1779533443000,-558.79,9.589e-05,2]
[422857789,1779533443000,-500.0,9.589e-05,2]
[422857794,1779533443000,-500.0,9.589e-05,2]
[422857797,1779533443000,-606.61,9.589e-05,2]
[422857791,1779533443000,-500.0,9.589e-05,2]
[422857785,1779533443000,-1199.25664048,9.534e-05,7]
[422857805,1779533443000,-500.0,9.589e-05,2]
[422857792,1779533443000,-500.0,9.589e-05,2]
[422857802,1779533443000,-500.0,9.589e-05,2]
[422857810,1779533443000,-500.0,9.589e-05,2]
[422857806,1779533443000,-1627.82,9.589e-05,2]
[422857800,1779533443000,-500.0,9.589e-05,2]
[422857804,1779533443000,-500.0,9.589e-05,2]
[422857808,1779533443000,-500.0,9.589e-05,2]
[422857803,1779533443000,-500.0,9.589e-05,2]
[422857807,1779533443000,-1332.53,9.589e-05,2]
[422857814,1779533443000,-441.63292609,9.589e-05,2]
[422857812,1779533443000,-448.31,9.589e-05,2]
[422857813,1779533443000,-500.0,9.589e-05,2]
[422857811,1779533443000,-1133.94,9.589e-05,2]
[422857822,1779533443000,-637.24,9.589e-05,2]
[422857820,1779533443000,-500.0,9.589e-05,2]
[422857821,1779533443000,-653.29,9.589e-05,2]
[422857788,1779533443000,-369.07807537,9.589e-05,2]
[422857801,1779533443000,-500.0,9.589e-05,2]
[422857787,1779533443000,-953.8306,9.589e-05,2]
[422857756,1779533443000,-637.24,9.315e-05,2]
[422857784,1779533443000,-1530.17488165,9.534e-05,7]
[422857818,1779533443000,-7578.79,9.589e-05,2]
[422857757,1779533443000,-1599.04,9.315e-05,2]
[422857755,1779533443000,-653.29,9.315e-05,2]
[422857754,1779533443000,-500.0,9.315e-05,2]
[422857759,1779533443000,-500.0,9.315e-05,2]
[422857760,1779533443000,-500.0,9.315e-05,2]
[422857758,1779533443000,-500.0,9.315e-05,2]
[422857761,1779533443000,-500.0,9.315e-05,2]
[422857763,1779533443000,-1245.66,9.315e-05,2]
[422857768,1779533443000,-500.0,9.51e-05,2]
[422857770,1779533443000,-1205.20192801,9.534e-05,7]
[422857769,1779533443000,-1217.25939267,9.534e-05,7]
[422857762,1779533443000,-500.0,9.315e-05,2]
[422857766,1779533443000,-456.6596809,9.4e-05,2]
[422857786,1779533443000,-1264.47445516,9.534e-05,7]
[422857765,1779533443000,-211.61459726,9.343e-05,2]
[422857767,1779533443000,-456.4729435,9.4e-05,2]
[422857771,1779533443000,-1376.53728631,9.534e-05,7]
[422857782,1779533443000,-1281.73902855,9.534e-05,7]
[422857773,1779533443000,-1134.22120116,9.534e-05,7]
[422857774,1779533443000,-5443.83687692,9.534e-05,7]
[422857772,1779533443000,-1354.14215792,9.534e-05,7]
[422857776,1779533443000,-1199.33498661,9.534e-05,7]
[422857775,1779533443000,-1195.7564032,9.534e-05,7]
[422857783,1779533443000,-4538.53963193,9.534e-05,7]
[422857777,1779533443000,-1233.02041352,9.534e-05,7]
[422857779,1779533443000,-1456.61557516,9.534e-05,7]
[422857780,1779533443000,-2293.2038815,9.534e-05,7]
[422857778,1779533443000,-1095.23290555,9.534e-05,7]
[422857781,1779533443000,-1082.74056719,9.534e-05,7]
[422857764,1779533443000,-500.0,9.315e-05,2]
[422857819,1779533443000,-500.0,9.589e-05,2]
[422857864,1779533443000,-500.0,9.863e-05,2]
[422857823,1779533443000,-1599.04,9.589e-05,2]
[422857861,1779533443000,-500.0,9.863e-05,2]
[422857863,1779533443000,-500.0,9.863e-05,2]
[422857858,1779533443000,-1332.53,9.863e-05,2]
[422857865,1779533443000,-7578.79,9.863e-05,2]
[422857862,1779533443000,-1133.94,9.863e-05,2]
[422857860,1779533443000,-931.49,9.863e-05,2]
[422857866,1779533443000,-500.0,9.863e-05,2]
[422857868,1779533443000,-653.29,9.863e-05,2]
[422857867,1779533443000,-500.0,9.863e-05,2]
[422857893,1779533443000,-151.0,0.0001,2]
[422857874,1779533443000,-500.0,9.863e-05,2]
[422857884,1779533443000,-151.0,0.0001,2]
[422857875,1779533443000,-1245.66,9.863e-05,2]
[422857873,1779533443000,-500.0,9.863e-05,2]
[422857872,1779533443000,-500.0,9.863e-05,2]
[422857886,1779533443000,-151.0,0.0001,2]
[422857880,1779533443000,-2077.78121685,0.0001,2]
[422857879,1779533443000,-10149.24466891,0.0001,2]
[422857877,1779533443000,-1768.66801771,9.911e-05,2]
[422857881,1779533443000,-151.0,0.0001,2]
[422857876,1779533443000,-500.0,9.863e-05,2]
[422857878,1779533443000,-845.61193067,9.933e-05,2]
[422857882,1779533443000,-151.0,0.0001,2]
[422857883,1779533443000,-151.0,0.0001,2]
[422857888,1779533443000,-151.0,0.0001,2]
[422857887,1779533443000,-151.0,0.0001,2]
[422857889,1779533443000,-151.0,0.0001,2]
[422857891,1779533443000,-151.0,0.0001,2]
[422857890,1779533443000,-151.0,0.0001,2]
[422857825,1779533443000,-500.0,9.589e-05,2]
[422857885,1779533443000,-151.0,0.0001,2]
[422857871,1779533443000,-500.0,9.863e-05,2]
[422857892,1779533443000,-151.0,0.0001,2]
[422857870,1779533443000,-1599.04,9.863e-05,2]
[422857817,1779533443000,-500.0,9.589e-05,2]
[422857869,1779533443000,-637.24,9.863e-05,2]
[422857827,1779533443000,-500.0,9.589e-05,2]
[422857839,1779533443000,-500.0,9.863e-05,2]
[422857838,1779533443000,-500.0,9.863e-05,2]
[422857826,1779533443000,-500.0,9.589e-05,2]
[422857833,1779533443000,-456.6596809,9.779e-05,2]
[422857835,1779533443000,-953.8306,9.863e-05,2]
[422857832,1779533443000,-1761.37378656,9.709e-05,2]
[422857829,1779533443000,-500.0,9.589e-05,2]
[422857830,1779533443000,-1245.66,9.589e-05,2]
[422857828,1779533443000,-448.02846908,9.589e-05,2]
[422857836,1779533443000,-500.0,9.863e-05,2]
[422857834,1779533443000,-327.3320371,9.78e-05,2]
[422857831,1779533443000,-500.0,9.589e-05,2]
[422857837,1779533443000,-206.76133803,9.863e-05,2]
[422857842,1779533443000,-500.0,9.863e-05,2]
[422857840,1779533443000,-234.93669621,9.863e-05,2]
[422857859,1779533443000,-500.0,9.863e-05,2]
[422857844,1779533443000,-558.79,9.863e-05,2]
[422857855,1779533443000,-500.0,9.863e-05,2]
[422857857,1779533443000,-1627.82,9.863e-05,2]
[422857846,1779533443000,-606.61,9.863e-05,2]
[422857848,1779533443000,-1630.14,9.863e-05,2]
[422857849,1779533443000,-500.0,9.863e-05,2]
[422857851,1779533443000,-500.0,9.863e-05,2]
[422857841,1779533443000,-500.0,9.863e-05,2]
[422857852,1779533443000,-500.0,9.863e-05,2]
[422857854,1779533443000,-500.0,9.863e-05,2]
[422857856,1779533443000,-500.0,9.863e-05,2]
[422857853,1779533443000,-500.0,9.863e-05,2]
[422857924,1779533444000,-1133.94,0.00010136,2]
[422857917,1779533444000,-500.0,0.00010136,2]
[422857930,1779533444000,-653.29,0.00010136,2]
[422857931,1779533444000,-637.24,0.00010136,2]
[422857932,1779533444000,-1599.04,0.00010136,2]
[422857922,1779533444000,-931.49,0.00010136,2]
[422857935,1779533444000,-500.0,0.00010136,2]
[422857933,1779533444000,-500.0,0.00010136,2]
[422857929,1779533444000,-500.0,0.00010136,2]
[422857934,1779533444000,-500.0,0.00010136,2]
[422857928,1779533444000,-500.0,0.00010136,2]
[422857942,1779533444000,-611.03,0.00010159,2]
[422857939,1779533444000,-864.0,0.00010142,2]
[422857936,1779533444000,-500.0,0.00010136,2]
[422857937,1779533444000,-1245.66,0.00010136,2]
[422857938,1779533444000,-500.0,0.00010137,2]
[422857952,1779533444000,-233.692042,0.00010372,2]
[422857941,1779533444000,-597.68,0.00010154,2]
[422857948,1779533444000,-10149.24466891,0.000102,2]
[422857943,1779533444000,-632.13,0.00010165,2]
[422857949,1779533444000,-7854.39883276,0.00010201,2]
[422857954,1779533444000,-10149.24466891,0.000104,2]
[422857916,1779533444000,-500.0,0.00010136,2]
[422857945,1779533444000,-682.98,0.00010183,2]
[422857940,1779533444000,-591.11,0.00010151,2]
[422857923,1779533444000,-500.0,0.00010136,2]
[422857905,1779533444000,-500.0,0.00010136,2]
[422857919,1779533444000,-1627.82,0.00010136,2]
[422857946,1779533444000,-750.54,0.00010191,2]
[422857898,1779533444000,-151.0,0.0001,2]
[422857894,1779533444000,-151.0,0.0001,2]
[422857899,1779533444000,-151.0,0.0001,2]
[422857900,1779533444000,-158.35163482,0.0001,2]
[422857897,1779533444000,-151.0,0.0001,2]
[422857896,1779533444000,-151.0,0.0001,2]
[422857895,1779533444000,-151.0,0.0001,2]
[422857901,1779533444000,-160.0,0.0001,2]
[422857903,1779533444000,-953.8306,0.00010136,2]
[422857902,1779533444000,-10149.24466891,0.000101,2]
[422857904,1779533444000,-500.0,0.00010136,2]
[422857921,1779533444000,-500.0,0.00010136,2]
[422857907,1779533444000,-500.0,0.00010136,2]
[422857912,1779533444000,-500.0,0.00010136,2]
[422857911,1779533444000,-1630.14,0.00010136,2]
[422857913,1779533444000,-500.0,0.00010136,2]
[422857908,1779533444000,-185.92088457,0.00010136,2]
[422857910,1779533444000,-606.61,0.00010136,2]
[422857909,1779533444000,-558.79,0.00010136,2]
[422857915,1779533444000,-500.0,0.00010136,2]
[422857926,1779533444000,-500.0,0.00010136,2]
[422857927,1779533444000,-7578.79,0.00010136,2]
[422857914,1779533444000,-500.0,0.00010136,2]
[422857925,1779533444000,-500.0,0.00010136,2]
[422857918,1779533444000,-500.0,0.00010136,2]
[422857906,1779533444000,-500.0,0.00010136,2]
[422857947,1779533444000,-715.63,0.00010191,2]
[422857920,1779533444000,-1332.53,0.00010136,2]
[422857950,1779533444000,-10149.24466891,0.000103,2]
[422857983,1779533444000,-76.41790353,0.0001041,2]
[422857985,1779533444000,-500.0,0.0001041,2]
[422857984,1779533444000,-1522.62209647,0.0001041,2]
[422857986,1779533444000,-500.0,0.0001041,2]
[422857987,1779533444000,-500.0,0.0001041,2]
[422857988,1779533444000,-500.0,0.0001041,2]
[422857990,1779533444000,-500.0,0.00010411,2]
[422857989,1779533444000,-1245.66,0.0001041,2]